Cogmind - Beta 14 *** ADVENTURER MODE // 2024.08.19 @ 14:20:10 Player: LegoMDS Result: Destroyed by Y-54 Guardian with Flak Gun Performance ------------- Evolutions (3) 1500 Regions Visited (6) 1200 Robots Destroyed (102) 510 Value Destroyed (3233) 3233 Prototype IDs (27) 540 Alien Tech Used (0) 0 Bonus (523) 523 TOTAL SCORE: 7506 Bonus ------- High Alert Combat Kills 85 Follower Combat Kills 138 Aligned with FarCom 300 Cogmind --------- Core Integrity 0/700 Matter 155/300 Energy 99/100 System Corruption 3% Temperature Cool (0) Movement Core (300) Ox5 Location -7/Factory Parts ------- > --- POWER (2) -------- (None) > --- PROPULSION (3) --- (None) > --- UTILITY (6) ------ Medium Storage Unit Advanced Targeting Computer Target Analyzer Advanced ECM Suite System Shield > --- WEAPON (2) ------- Flak Gun > --- INVENTORY (10) --- Light Nuclear Core Light Nuclear Core Compact Matter Pod (150) Experimental Sensor Array Reaction Control System High-powered Tractor Beam Latent Energy Streamer Gauss Rifle Spear Peak State ------------ > --- POWER ------------ Light Angular Momentum Engine Light Angular Momentum Engine > --- PROPULSION ------- Carbon-fiber Leg Carbon-fiber Leg Carbon-fiber Leg > --- UTILITY ---------- Improved Heat Sink Medium Storage Unit Large Battery Advanced ECM Suite Hacking Suite System Shield > --- WEAPON ----------- Latent Energy Streamer High-powered Shotgun > --- INVENTORY -------- Aluminum Leg Improved Heat Sink Hardened Light Armor Plating Shield Generator High-powered Tractor Beam Gauss Rifle Assault Cannon Rocket Launcher [Rating: 49] Favorites ----------- Power Light Nuclear Core Engine Light Angular Momentum Engine Power Core Light Nuclear Core Propulsion Aluminum Leg Leg Aluminum Leg Flight Unit Improved Cesium-ion Thruster Utility Medium Storage Unit Device Improved Heat Sink Storage Medium Storage Unit Processor Advanced Targeting Computer Hackware System Shield Weapon Assault Rifle Energy Gun Particle Gun Energy Cannon Latent Energy Streamer Ballistic Gun Assault Rifle Ballistic Cannon Battle Cannon Launcher Mini Grenade Launcher Piercing Weapon Spear Build | -11 -10 -10 -10 -9 -8 -7 ------- Run | Yrd Mat Min Exi Min Mat Fac Slots Evolved 6 | . . . . . 4 2 Power 1 | . . . . . . 1 Propulsion 1 | . . . . . 1 . Utility 4 | . . . . . 3 1 Weapon . | . . . . . . . Parts Attached 94 | 6 4 7 1 2 31 43 Power 17 | 1 1 2 . . 1 12 Engine 8 | 1 1 1 . . 1 4 Core 9 | . . 1 . . . 8 Reactor . | . . . . . . . Propulsion 22 | 2 . 2 . 1 7 10 Treads . | . . . . . . . Leg 15 | 2 . 2 . 1 7 3 Wheel . | . . . . . . . Hover . | . . . . . . . Flight 7 | . . . . . . 7 Utility 27 | 1 2 . 1 1 9 13 Device 12 | . 1 . . 1 3 7 Storage 10 | 1 1 . 1 . 4 3 Processor 3 | . . . . . . 3 Hackware 2 | . . . . . 2 . Protection . | . . . . . . . Artifact . | . . . . . . . Weapon 28 | 2 1 3 . . 14 8 Energy Gun 2 | . . . . . 2 . Energy Cannon 3 | . . . . . 3 . Ballistic Gun 17 | 2 1 2 . . 6 6 Ballistic Cannon 3 | . . 1 . . 2 . Launcher 2 | . . . . . 1 1 Special Weapon . | . . . . . . . Impact Weapon . | . . . . . . . Slashing Weapon . | . . . . . . . Piercing Weapon 1 | . . . . . . 1 Special Melee Weapon . | . . . . . . . Unidentified Prototypes 3 | . . . . . . 3 Parts Lost 27 | . . 1 . . . 26 Power 10 | . . 1 . . . 9 Propulsion 9 | . . . . . . 9 Utility 4 | . . . . . . 4 Weapon 4 | . . . . . . 4 Highest Loss Streak 7 | . . 1 . . . 7 To Critical Strikes . | . . . . . . . Average Slot Usage (%) 93 | . 89 99 100 100 99 87 Engine 5 | . 14 9 . . 5 5 Core 6 | . . 4 14 14 3 5 Leg 17 | . 28 28 28 28 27 4 Flight 5 | . . . . . . 12 Device 10 | . 4 14 14 14 9 8 Storage 14 | . 14 14 14 14 17 14 Processor 4 | . . . . . . 11 Hackware 6 | . . . . . 18 9 Ballistic Gun 12 | . 28 21 14 14 9 8 Ballistic Cannon 4 | . . 6 14 14 5 . Piercing Weapon 1 | . . . . . . 4 Peak Build Rating 49 | 6 9 14 15 15 41 49 Average Rating 27 | 3 6 10 14 15 29 41 On Entrance 14 | . 6 9 14 15 15 40 Naked Turns . | . . . . . . . Heaviest Build 42 | 10 19 21 21 21 36 42 Greatest Support 45 | 20 20 20 20 20 45 45 Greatest Overweight (x) 10 | . . 1 1 1 . 10 Average Overweight (x) . | . . . 1 1 . 1 Largest Inventory Capacity 10 | 8 10 10 10 10 10 10 Average Capacity 9 | 6 8 10 10 10 10 10 Most Carried 10 | 5 8 10 10 10 10 10 Average Carried 9 | 2 4 8 9 10 9 9 Final Capacity 10 | 8 10 10 10 10 10 10 Final Carried 10 | 2 7 10 10 10 10 9 Class Distribution -------------------- 50% | Hacker-Mutant 33% | Scavenger-Mutant 15% | Mutant Dominant Class ---------------- Mutant | -10/Materials Mutant | -10/Mines Scavenger-Mutant | -10/Exiles Scavenger-Mutant | -9/Mines Hacker-Mutant | -8/Materials Hacker-Mutant | -7/Factory Resources | -11 -10 -10 -10 -9 -8 -7 ----------- Run | Yrd Mat Min Exi Min Mat Fac Matter Collected 2251 | 209 167 121 . 230 583 941 Remotely . | . . . . . . . Salvage Created 3068 | . 233 116 . 160 912 1647 Parts 190 | . 18 13 . 15 48 96 Haulers Intercepted 3 | . 1 . . . . 2 Recyclers Shooed 2 | . . . . . . 2 Parts Field Recycled . | . . . . . . . Retrieved Matter . | . . . . . . . Parts Self-Destructed . | . . . . . . . Prevented . | . . . . . . . Kills | -11 -10 -10 -10 -9 -8 -7 ------- Run | Yrd Mat Min Exi Min Mat Fac Combat Hostiles Destroyed 80 | . 6 8 . 12 20 34 Melee 8 | . . . . . . 8 Guns 40 | . 6 6 . 1 11 16 Cannons 15 | . . 2 . 11 2 . AOE 17 | . . . . . 7 10 Classes Destroyed 15 | . 4 2 . . 8 1 Worker 3 | . . . . . 1 2 Builder 3 | . . . . . 1 2 Hauler 3 | . 1 . . . . 2 Recycler 7 | . . . . . 1 6 Mechanic 1 | . . . . . 1 . Operator 2 | . . . . . 1 1 Watcher 5 | . 1 . . . 2 2 Swarmer 29 | . 3 3 . 10 7 6 Grunt 35 | . 3 2 . 2 9 19 Brawler 2 | . . . . . 2 . Sentry 2 | . . . . . 1 1 Demolisher 1 | . . 1 . . . . Hunter 5 | . . . . . 1 4 Programmer 4 | . . . . . . 4 Assembled 2 | . . 2 . . . . Best Kill Streak 12 | . 3 3 . 4 8 12 Combat Bots Only 5 | . 3 3 . 4 4 5 Max Kills in Single Turn 6 | . 1 1 . 1 5 6 Gunslinging . | . . . . . . . Exploded 4 | . . . . . 4 2 Melee 1 | . . . . . . 1 Uniques/NPCs Destroyed . | . . . . . . . Combat | -11 -10 -10 -10 -9 -8 -7 -------- Run | Yrd Mat Min Exi Min Mat Fac Hostile Shots Fired 575 | . 28 27 . 58 98 364 Missed 198 | . 10 10 . 11 35 132 Damage Taken 4107 | . 153 241 . 309 732 2672 Core 1016 | . 50 64 . 62 139 701 Absorbed by Shields . | . . . . . . . Ignored by Resistances 1193 | . 48 70 . 98 212 765 Regen/Repaired (Parts) 37 | . . . . . 37 . Core Remaining (%) 67 | 100 . . . 29 74 . Volleys Fired 224 | . 19 15 . 20 67 103 Largest 2 | . 2 2 . 2 2 2 Hottest 104 | . 40 59 . 59 104 58 Shots Fired 360 | . 38 30 . 40 123 129 Gun 289 | . 38 21 . 20 94 116 Cannon 55 | . . 9 . 20 26 . Launcher 16 | . . . . . 3 13 Special . | . . . . . . . Kinetic 326 | . 38 30 . 40 102 116 Thermal 16 | . . . . . 16 . Explosive 16 | . . . . . 3 13 Electromagnetic 2 | . . . . . 2 . Robot Hit Streak 30 | . 10 8 . 10 15 30 Robot Miss Streak 8 | . 2 2 . 3 3 8 Penetration Max . | . . . . . . . Secondary Targets 7 | . 2 1 . . 4 . Max Gunslinging Chain 1 | . 1 1 . . 1 . Shots Hit Robots 309 | . 29 19 . 27 97 137 Core Hits 222 | . 13 13 . 13 56 127 Critical Kills 4 | . 1 . . . 1 2 Critical Parts Destroyed . | . . . . . . . Critical Strikes 7 | . 1 . . 1 1 4 Destroy 4 | . 1 . . . 1 2 Blast 1 | . . . . 1 . . Impale 2 | . . . . . . 2 Melee Attacks 25 | . . . . . . 25 Impact . | . . . . . . . Slashing . | . . . . . . . Piercing 25 | . . . . . . 25 Sneak Attacks 2 | . . . . . . 2 Combat Hostiles 2 | . . . . . . 2 Follow-up Attacks . | . . . . . . . Damage Inflicted 9228 | . 296 282 . 459 2863 5328 Guns 3943 | . 296 195 . 161 1225 2066 Cannons 794 | . . 87 . 298 409 . Explosions 3531 | . . . . . 1229 2302 Melee 710 | . . . . . . 710 Ramming 250 | . . . . . . 250 Kinetic 4556 | . 296 282 . 459 1453 2066 Thermal 1326 | . . . . . 365 961 Explosive 1462 | . . . . . 121 1341 Electromagnetic 924 | . . . . . 924 . Impact . | . . . . . . . Slashing . | . . . . . . . Piercing 710 | . . . . . . 710 Highest Corruption 6 | . . . . . 6 6 Average Corruption 4 | . . . . . 3 4 Corruption Purged 6 | . . . . . . 6 Corruption Blocked . | . . . . . . . Effects 23 | . . . . . 1 22 Message Errors 5 | . . . . . . 5 Matter Fused 5 | . . . . . . 5 Heat Flow Errors 3 | . . . . . . 3 Energy Discharges 3 | . . . . . . 3 Data Loss (minor) 3 | . . . . . 1 2 Data Loss (major) 2 | . . . . . . 2 Alerts 1 | . . . . . . 1 Weapon Failures 1 | . . . . . . 1 Overload Shots . | . . . . . . . Overflow Damage 323 | . . 2 . 8 47 266 Projectiles 34 | . . 2 . 8 24 . Explosions 213 | . . . . . 23 190 Melee 76 | . . . . . . 76 Knockbacks 6 | . . 1 . 2 2 1 Impact 1 | . . . . . . 1 Kinetic 5 | . . 1 . 2 2 . Secondary . | . . . . . . . Self-Inflicted Damage 90 | . . . . . 23 67 Shots 5 | . . . . . 1 4 Rammed . | . . . . . . . Targets Rammed 61 | . . . . . . 61 Kicked 61 | . . . . . . 61 Crushed . | . . . . . . . Highest Temperature 117 | . 9 . . . 18 117 Average Temperature 19 | . 6 . . . 7 42 Received Heat Transfer 1392 | . 90 27 . 36 432 807 Siege Activations . | . . . . . . . Robots Corrupted . | . . . . . . . Combat Hostiles . | . . . . . . . Parts Fried 2 | . . . . . 2 . Impact Corruptions 1 | . . . . . . 1 Robots Melted . | . . . . . . . Combat Hostiles . | . . . . . . . Parts Melted . | . . . . . . . Heat Transferred 1407 | . . . . . 707 700 Parts Sabotaged . | . . . . . . . Parts Stolen . | . . . . . . . Parts Stripped . | . . . . . . . Power Chain Reactions 1 | . . . . . 1 . Latent Energy Used 339 | . . . . . 339 . LE Corruption 6 | . . . . . 6 . Alert | -11 -10 -10 -10 -9 -8 -7 ------- Run | Yrd Mat Min Exi Min Mat Fac Peak Influence 603 | . 169 132 . 210 603 468 Initial 234 | . . 55 . . . 234 Average 123 | . 93 57 . 113 203 125 Maximum Alert Level 2 | . . . . 1 2 2 Low Security (%) 79 | 100 100 100 . 85 54 77 Level 1 18 | . . . . 15 37 21 Level 2 1 | . . . . . 8 . Level 3 . | . . . . . . . Level 4 . | . . . . . . . Level 5 . | . . . . . . . High Security . | . . . . . . . Max Security . | . . . . . . . Squads Dispatched 20 | . . 1 . . 5 14 Investigation 6 | . . 1 . . 1 4 Extermination 4 | . . . . . . 4 Reinforcement 6 | . . . . . 3 3 Assault 1 | . . . . . 1 . Garrison 3 | . . . . . . 3 Intercept . | . . . . . . . Searches Triggered . | . . . . . . . Construction Impeded 2 | . . . . . . 2 Haulers Reinforced . | . . . . . . . Active Scanning Responses . | . . . . . . . Cargo Convoy Interrupts . | . . . . . . . Stealth | -11 -10 -10 -10 -9 -8 -7 --------- Run | Yrd Mat Min Exi Min Mat Fac Distress Signals 7 | . 1 . . . 2 4 Communications Jammed . | . . . . . . . Distress Signals . | . . . . . . . Times Spotted 135 | . 7 26 . 11 41 50 Peak Tracking Total 17 | . 3 17 . 3 6 7 Tactical Retreats 9 | . . 1 . . 1 7 Traps | -11 -10 -10 -10 -9 -8 -7 ------- Run | Yrd Mat Min Exi Min Mat Fac Traps Triggered 2 | . . . . . . 2 Indirectly . | . . . . . . . Trap Hack Attempts . | . . . . . . . Triggered . | . . . . . . . Disarmed . | . . . . . . . Reprogrammed . | . . . . . . . Reused . | . . . . . . . Traps Extracted . | . . . . . . . Installed . | . . . . . . . Triggered . | . . . . . . . Machines | -11 -10 -10 -10 -9 -8 -7 ---------- Run | Yrd Mat Min Exi Min Mat Fac Machines Disabled 17 | . . 1 . 1 5 10 Max in Single Turn 10 | . . 1 . 1 2 10 Garrison Access 1 | . . . . . 1 . Machines Repaired . | . . . . . . . Machines Dismantled . | . . . . . . . Machines Sabotaged . | . . . . . . . Overloaded Fab Kills . | . . . . . . . Hacking | -11 -10 -10 -10 -9 -8 -7 --------- Run | Yrd Mat Min Exi Min Mat Fac Machines Accessed 14 | . . 2 2 . 5 5 Terminals 6 | . . 1 . . 2 3 Fabricators 1 | . . . . . . 1 Repair Stations 1 | . . . . . 1 . Recycling Units . | . . . . . . . Scanalyzers 3 | . . . . . 2 1 Garrison Access . | . . . . . . . Total Hacks 42 | . . 4 3 . 21 14 Successful 30 | . . 4 3 . 17 6 Failed 12 | . . . . . 4 8 Catastrophic 2 | . . . . . . 2 Database Lockouts . | . . . . . . . Manual 6 | . 2 1 1 . . 2 Terminals 23 | . . 3 . . 11 9 Fabricators 2 | . . . . . . 2 Repair Stations 2 | . . . . . 2 . Recycling Units . | . . . . . . . Scanalyzers 11 | . . . . . 8 3 Garrison Access . | . . . . . . . Terminal Hacks 18 | . . 4 3 . 7 4 Record 13 | . . 3 2 . 6 2 Robot Schematic 1 | . . . . . . 1 Robot Analysis 1 | . . . . . . 1 Open Door 1 | . . 1 . . . . Branch Access Points 1 | . . . . . 1 . Derelict Proto ID Bank 1 | . . . 1 . . . Fabricator Hacks 2 | . . . . . . 2 Load Schematic 1 | . . . . . . 1 Build 1 | . . . . . . 1 Repair Station Hacks 2 | . . . . . 2 . Scan Component 1 | . . . . . 1 . Repair 1 | . . . . . 1 . Recycling Unit Hacks . | . . . . . . . Scanalyzer 8 | . . . . . 8 . Insert Component 4 | . . . . . 4 . Analyze 4 | . . . . . 4 . Garrison Access Hacks . | . . . . . . . Unauthorized Hacks . | . . . . . . . Terminals . | . . . . . . . Fabricators . | . . . . . . . Repair Stations . | . . . . . . . Recycling Units . | . . . . . . . Scanalyzers . | . . . . . . . Garrison Access . | . . . . . . . Data Cores Recovered . | . . . . . . . Used . | . . . . . . . Hacking Detections 8 | . . 1 . . 3 4 Full Trace Events 4 | . . . . . 1 3 Feedback Events . | . . . . . . . Feedback Blocked . | . . . . . . . Robot Schematics Acquired 1 | . . . . . . 1 Robots Built . | . . . . . . . Authchips . | . . . . . . . Time . | . . . . . . . Total Robot Build Rating . | . . . . . . . Part Schematics Acquired 4 | . . . . . 4 . Parts Built 1 | . . . . . . 1 Authchips . | . . . . . . . Time 204 | . . . . . . 204 Total Part Build Rating 8 | . . . . . . 8 Parts Repaired 1 | . . . . . 1 . Time 32 | . . . . . 32 . Parts Recycled . | . . . . . . . Recycled Matter . | . . . . . . . Retrieved Matter . | . . . . . . . Retrieved Components . | . . . . . . . Parts Scanalyzed 4 | . . . . . 4 . Part Schematics Acquired 4 | . . . . . 4 . Parts Damaged 1 | . . . . . 1 . Bothacking | -11 -10 -10 -10 -9 -8 -7 ------------ Run | Yrd Mat Min Exi Min Mat Fac Used RIF Installer . | . . . . . . . Robots Hacked . | . . . . . . . Non-combat . | . . . . . . . Combat . | . . . . . . . Robot Hacks Applied . | . . . . . . . Relay Couplers Released 1 | . . . . . 1 . Machine Destruction 1 | . . . . . 1 . Fabnet Peak Effective % . | . . . . . . . Robots Rewired . | . . . . . . . Allies Hacked . | . . . . . . . Hacks Repelled . | . . . . . . . Allies | -11 -10 -10 -10 -9 -8 -7 -------- Run | Yrd Mat Min Exi Min Mat Fac Total Allies 3 | . . 1 . 2 . . Largest Group 2 | . . 1 . 2 2 . Highest-Rated Group 42 | . . 31 . 42 42 . Highest-Rated Ally 31 | . . 31 . 31 31 . Total Orders . | . . . . . . . Ally Attacks 26 | . . 5 . . 21 . Total Damage 376 | . . 42 . . 334 . Kills 4 | . . . . . 4 . Allies Corrupted . | . . . . . . . Allies Melted . | . . . . . . . Intel | -11 -10 -10 -10 -9 -8 -7 ------- Run | Yrd Mat Min Exi Min Mat Fac Robot Analysis Total 1 | . . . . . . 1 Derelict Logs Recovered 4 | . . 1 . 3 . . Drone Launches . | . . . . . . . Drone Recoveries . | . . . . . . . Exploration | -11 -10 -10 -10 -9 -8 -7 ------------- Run | Yrd Mat Min Exi Min Mat Fac Turns Passed 6260 | 49 357 829 619 800 906 2700 Spaces Moved 3001 | 40 242 524 324 379 505 987 Core 41 | 16 . . . . . 25 Treads . | . . . . . . . Legs 2212 | 24 242 524 324 379 505 214 Wheels . | . . . . . . . Hover . | . . . . . . . Flight 748 | . . . . . . 748 Fastest Speed 50 | 50 120 120 190 190 120 97 Average Speed 146 | 92 120 136 190 190 120 143 Slowest Speed 550 | 120 120 190 190 190 120 550 Overloaded Moves . | . . . . . . . Propulsion Burnouts . | . . . . . . . Robots Hopped . | . . . . . . . Cave-ins Triggered 1 | . . . . . . 1 Exploration Rate (%) 53 | 3 51 95 71 85 49 19 Regions Visited 6 Branch Regions 3 Pre-discovered Areas . | . . . . . . . Known Exits Taken 1 | . . . . . 1 . Unknown Exits Taken 5 | 1 1 1 1 1 . . Scrap Searched 3 | . . 1 . 2 . . Spaces Dug . | . . . . . . . Terrain Destroyed 132 | . . 3 . 1 74 54 Melee . | . . . . . . . Projectile 8 | . . 3 . 1 3 1 AOE 124 | . . . . . 71 53 Terrain Rammed . | . . . . . . . Walls Destroyed . | . . . . . . . Machines Disabled . | . . . . . . . Actions | -11 -10 -10 -10 -9 -8 -7 --------- Run | Yrd Mat Min Exi Min Mat Fac Total 4459 | 51 274 610 329 420 687 2088 Wait 942 | . . 47 . 17 54 824 Move 2995 | 39 241 523 323 378 504 987 Hop . | . . . . . . . Pick Up 60 | 6 8 10 2 1 11 22 Fast Attach 25 | 2 . . . . 5 18 Attach 25 | 4 1 1 . . 4 15 Detach 2 | . . . . . . 2 Swap 45 | . 3 6 1 2 22 11 Drop 55 | . 2 8 3 2 20 20 Fire 224 | . 19 15 . 20 67 103 Melee 25 | . . . . . . 25 Ram . | . . . . . . . Kick 61 | . . . . . . 61 Crush . | . . . . . . . Escape Stasis . | . . . . . . . Rewire . | . . . . . . . Trap . | . . . . . . . Miscellaneous . | . . . . . . . Route ------- -11/Scrapyard -10/Materials (discovered 2 exits: [*Mat] / *Min) -10/Mines (discovered 3 exits: [*Mat x2] / *Exi) -10/Exiles -9/Mines (discovered 2 exits: *Mat x2) -8/Materials (discovered 4 exits: *Fac x2 / *Sto x2) -7/Factory History --------- Turn | Location | Event 15 | -11/Scrapyard | Discovered new exit (range 15) 50 | -11/Scrapyard | Entered Materials 164 | -10/Materials | Discovered new exit (range 16) 320 | -10/Materials | Build established: Mutant 355 | -10/Materials | Discovered new exit (range 9) 407 | -10/Materials | Entered Mines 408 | -10/Mines | Assembled infested the area 410 | -10/Mines | Received a Mining Laser from a helpful Derelict 509 | -10/Mines | Discovered new exit (range 7) 541 | -10/Mines | Discovered new exit (range 15) 758 | -10/Mines | Found a damaged Exp. Sensor Array with a note attached 763 | -10/Mines | Found Prototype Device 816 | -10/Mines | A weapon hastily lodged in a ceiling crevice suddenly fell to the ground 881 | -10/Mines | Learned 4 Materials zone layouts 920 | -10/Mines | Received a Rocket Launcher from a helpful Derelict 1139 | -10/Mines | Met a Derelict shopkeep closing up shop 1228 | -10/Mines | Deemed a non-threat by the Exiles lab entrance 1228 | -10/Mines | Discovered new exit (range 5) 1236 | -10/Mines | Entered Exiles 1282 | -10/Exiles | Met 8R-AWN 1296 | -10/Exiles | Build established: Scavenger-Mutant 1316 | -10/Exiles | Met EX-HEX 1377 | -10/Exiles | Met EX-BIN 1400 | -10/Exiles | Aligned with FarCom system 1402 | -10/Exiles | Given EX-Vault access code 1445 | -10/Exiles | Opened EX-Vault 1455 | -10/Exiles | Found Latent Energy Streamer 1512 | -10/Exiles | Warned to stay clear of 0b10 Research branches 1569 | -10/Exiles | Met EX-DEC 1834 | -10/Exiles | Discovered new exit (range 11) 1855 | -10/Exiles | Left Exiles lab with Latent Energy Streamer 1855 | -10/Exiles | Entered Mines 1856 | -9/Mines | Met a Derelict bent on vengeance 1860 | -9/Mines | Core integrity fell below 50% 1928 | -9/Mines | Learned Materials stockpile data 1946 | -9/Mines | Discovered new exit (range 10) 2060 | -9/Mines | Learned location of 2 exits from Materials 2646 | -9/Mines | Discovered new exit (range 5) 2655 | -9/Mines | Entered Materials 2655 | -8/Materials | Accompanied by 2 allies 2655 | -8/Materials | Evolved 4 slots: Propulsion x1, Utility x3 2656 | -8/Materials | Identified exit to Storage 2657 | -8/Materials | Identified exit to Factory 2660 | -8/Materials | Led the pair of lost Derelicts to an unsafe place 2691 | -8/Materials | Identified Exp. Sensor Array 2954 | -8/Materials | Build established: Hacker-Mutant 3156 | -8/Materials | Repaired Shotgun 3540 | -8/Materials | Discovered exit to Factory (range 4) 3561 | -8/Materials | Entered Factory 3561 | -7/Factory | Evolved 2 slots: Power x1, Utility x1 3832 | -7/Factory | Fabricated Exp. Sensor Array (x1) 4045 | -7/Factory | Lost 5 parts (2p2n1w) 5552 | -7/Factory | Core integrity fell below 50% 5960 | -7/Factory | Build established: Scavenger-Mutant 6047 | -7/Factory | Garrison activated, responded to threat 6103 | -7/Factory | Garrison activated, responded to threat 6143 | -7/Factory | Lost 7 parts (2p3n1u1w) 6149 | -7/Factory | Crushed by falling debris 6208 | -7/Factory | Core integrity fell below 20% 6261 | -7/Factory | Destroyed by Y-54 Guardian with Flak Gun Last Messages --------------- U-05 Engineer lays Concrete. VTOL Module destroyed. U-05 Engineer lays Concrete. U-05 Engineer builds a Wall. U-05 Engineer lays Concrete. K-01 Serf cleans the DSF Access. U-05 Engineer lays Concrete. K-01 Serf collects debris. U-05 Engineer lays Concrete. Acquired 1 matter. U-05 Engineer lays Concrete. K-01 Serf cleans the DSF Access. U-05 Engineer builds a Wall. U-05 Engineer lays Concrete. U-05 Engineer builds a Wall. U-05 Engineer lays Concrete. K-01 Serf collects debris. U-05 Engineer lays Concrete. K-01 Serf collects debris. Acquired 24 matter. Map ----- +----------------------------------------------------+ | ?????????????????????????????????????????????????? | | ?????????????????????????????????????????????????? | | ?????????????????????????????????????????????????? | | ?????????????????????????????????????????????????? | | ?????????????????????????????????????????????????? | | ?????????????????????????????????????????????????? | | ?????????????????????????????????????????????????? | | ?????????????????????????? ???????????????????? | | ?????????????????????????? ?????????????????? | | ????????????????????????? ??????????????? | | ?????????????????????????# ????????????? | | ?????????????????????????# ??????????? | | ?????????????????????????# ?????????? | | ?????????????????????????# ?????????? | | ?????????????????????????# Y +????????? | | ???????????????????????? # #????????? | | ???????????????????????? # u #????????? | | ?????????????????????????# #????????? | | ?????????????????????????# #????????? | | ?????????????? ??????????# # ???????? | | ?????????????? ?????????# ##???????? | | ????#################### #=%= # ??????? | | ??? r [ ## # + ??????? | | ??? ######! # ??????? | | ??? %= ! uugw* # ??????? | | ??????????#######![% ku=@= #????????? | | ???????????????# *% [ [ #????????? | | ???????????????#Tk% =[ #????????? | | ???????????????## k%* #????????? | | ???????????????## *! #????????? | | ????????????????# * ! = #????????? | | ????????????????#k! =%[ ! ] ##????????? | | ????????????????# = !% % #?????????? | | ????????????????# ########+####### #?????????? | | ????????????????# # ## #?????????? | | ???????########## # + #?????????? | | ???????# # # ###+##?????????? | | ???????# """ /a # #??????????????? | | ???????# """ # # #??????????????? | | ???????? """ # # #??????????????? | | ???????? ?# # #??????????????? | | ???????# """ ?# # #??????????????? | | ???????# """ ??# # #??????????????? | | ???????# """ ??# # #??????????????? | | ?????????? ???# # #??????????????? | | ??????????###???# ###+################?????????? | | ????????????????# #?# #?# #?????????? | | ????????????????# #?# #?# """ """ #?????????? | | ?????############ #?# #?# """ """ #?????????? | | ?????# ! [## ### #?# """ """ #?????????? | +----------------------------------------------------+ Best States ------------- Heat Dissipation 61 Energy Generation 31 Energy Capacity 550 Matter Stores 300 Matter Capacity 300 Sight Range 16 Terrain Scan Density 10 ECM Strength 2 Resistance: KI 20 Resistance: TH 20 Resistance: EX 20 Resistance: EM 20 Resistance: I 20 Resistance: S 20 Resistance: P 20 Evasion (%) 55 Targeting Accuracy 8 Target Analysis 5 Offensive Hacking 20 Defensive Hacking 10 Item Schematics ----------------- Deuterium Engine | -8/Materials | Scanalyzed Exp. Sensor Array | -8/Materials | Scanalyzed Rocket Launcher | -8/Materials | Scanalyzed Hpw. Shotgun | -8/Materials | Scanalyzed Robot Schematics ------------------ L-41 Fighter | -7/Factory | Hacked Fabricated ------------ Exp. Sensor Array | x1 | -7/Factory Alien Tech Used ----------------- None Achievements -------------- None Challenges ------------ None Game ------ Seed ThiefReactionTearclaws Manual? 0 Play Time 00:51:11 Cumulative 31.1 hours Start 2024.08.19 @ 13:31:19 End 2024.08.19 @ 14:20:10 Sessions 1 Manual Loads 0 Difficulty Adventurer Special Mode None Game No. 35 Rogue 13 Adventurer 22 Explorer 0 Win Type - Total 0 Types 0/0/0/0/0/0/0/0/0 Lore% 28 Gallery% 37 Achievement% 31 Wizard Run 0 Options --------- Layout 1 ASCII 0 Keyboard 0 Movement Mouse Keybinds 0 Fullscreen 1 Font 24/Smallcaps Map View 50x35 Zoom Use 0% Tactical HUD 0 Map Filters NONE Filters NONE Steam 1 RUN: 063ba414-64bf-4b8c-a2b6-7cb53f67cce4